[Event "Late-Titled-Tuesday-Blitz-June-18-2024"]
[Site "Chess.com"]
[Date "2024.06.18"]
[Round "10"]
[White "DeArron_Fox"]
[Black "kalinchick"]
[Result "1-0"]
[WhiteElo "2465"]
[BlackElo "2369"]
[TimeControl "180+1"]
[EndTime "15:56:02 PDT"]
[Termination "DeArron_Fox won by checkmate"]

1. d4 {[%clk 0:03:00.9]} 1... Nf6 {[%clk 0:02:59.6]} 2. c4 {[%clk 0:02:35.8]}
2... e6 {[%clk 0:02:59.3]} 3. Nf3 {[%clk 0:02:33.9]} 3... d5 {[%clk 0:02:59.5]}
4. Nc3 {[%clk 0:02:33.3]} 4... Be7 {[%clk 0:02:59.2]} 5. Bf4 {[%clk 0:02:26.9]}
5... Nbd7 {[%clk 0:02:55.1]} 6. e3 {[%clk 0:02:23]} 6... O-O {[%clk 0:02:54.4]}
7. c5 {[%clk 0:02:21.3]} 7... Nh5 {[%clk 0:02:51.2]} 8. h3 {[%clk 0:02:10.7]}
8... Nxf4 {[%clk 0:02:50.4]} 9. exf4 {[%clk 0:02:11.6]} 9... c6 {[%clk
0:02:21.2]} 10. Bd3 {[%clk 0:01:51.2]} 10... b6 {[%clk 0:02:20.2]} 11. b4 {[%clk
0:01:51.1]} 11... a5 {[%clk 0:02:20]} 12. a3 {[%clk 0:01:50.3]} 12... bxc5
{[%clk 0:02:19]} 13. bxc5 {[%clk 0:01:48.7]} 13... Ba6 {[%clk 0:02:19.5]} 14.
O-O {[%clk 0:01:48.5]} 14... Bxd3 {[%clk 0:02:16.8]} 15. Qxd3 {[%clk 0:01:49.4]}
15... Qc7 {[%clk 0:02:16.9]} 16. Ne5 {[%clk 0:01:47.2]} 16... Rfb8 {[%clk
0:02:11.8]} 17. Rfb1 {[%clk 0:01:46.6]} 17... Nf8 {[%clk 0:01:58.1]} 18. g3
{[%clk 0:01:43.5]} 18... f6 {[%clk 0:01:57]} 19. Nf3 {[%clk 0:01:30.4]} 19...
Kf7 {[%clk 0:01:49.3]} 20. h4 {[%clk 0:01:28.7]} 20... g6 {[%clk 0:01:45.9]} 21.
Kg2 {[%clk 0:01:27.6]} 21... h5 {[%clk 0:01:43.7]} 22. Rxb8 {[%clk 0:00:53.7]}
22... Rxb8 {[%clk 0:01:41.3]} 23. Rb1 {[%clk 0:00:54.6]} 23... Rxb1 {[%clk
0:01:40.1]} 24. Qxb1 {[%clk 0:00:55.5]} 24... Nd7 {[%clk 0:01:37.2]} 25. Na4
{[%clk 0:00:52.4]} 25... Qb8 {[%clk 0:01:34.8]} 26. Qxb8 {[%clk 0:00:24.7]}
26... Nxb8 {[%clk 0:01:35.7]} 27. Nb6 {[%clk 0:00:25.2]} 27... Bd8 {[%clk
0:01:12.8]} 28. Nd2 {[%clk 0:00:24.7]} 28... Ke7 {[%clk 0:01:03.6]} 29. Nb3
{[%clk 0:00:18.1]} 29... Na6 {[%clk 0:00:57.1]} 30. Nxa5 {[%clk 0:00:12]} 30...
Bxb6 {[%clk 0:00:45.3]} 31. cxb6 {[%clk 0:00:12.9]} 31... Kd6 {[%clk 0:00:45.8]}
32. Nb7+ {[%clk 0:00:05.8]} 32... Ke7 {[%clk 0:00:42.8]} 33. Nc5 {[%clk
0:00:03.6]} 33... Nxc5 {[%clk 0:00:41.2]} 34. dxc5 {[%clk 0:00:04.5]} 34... Kd8
{[%clk 0:00:41.5]} 35. a4 {[%clk 0:00:03.9]} 35... Kc8 {[%clk 0:00:41.9]} 36. a5
{[%clk 0:00:04.4]} 36... Kb7 {[%clk 0:00:42.8]} 37. f3 {[%clk 0:00:03.8]} 37...
e5 {[%clk 0:00:42.1]} 38. fxe5 {[%clk 0:00:02.9]} 38... fxe5 {[%clk 0:00:43]}
39. g4 {[%clk 0:00:03.2]} 39... Ka6 {[%clk 0:00:41.3]} 40. Kf2 {[%clk
0:00:02.8]} 40... Kb7 {[%clk 0:00:41.2]} 41. Ke3 {[%clk 0:00:03.1]} 41... Ka6
{[%clk 0:00:40.6]} 42. Kd3 {[%clk 0:00:01.9]} 42... Kb7 {[%clk 0:00:40.4]} 43.
Kc3 {[%clk 0:00:02.5]} 43... Ka6 {[%clk 0:00:40.8]} 44. Kd2 {[%clk 0:00:03]}
44... Kb7 {[%clk 0:00:41.1]} 45. Ke3 {[%clk 0:00:03.4]} 45... Ka6 {[%clk
0:00:41.1]} 46. f4 {[%clk 0:00:02.3]} 46... exf4+ {[%clk 0:00:39.6]} 47. Kxf4
{[%clk 0:00:03.2]} 47... Kb7 {[%clk 0:00:38.2]} 48. g5 {[%clk 0:00:01.4]} 48...
Ka6 {[%clk 0:00:38]} 49. Ke5 {[%clk 0:00:02]} 49... Kb7 {[%clk 0:00:37.8]} 50.
Kd4 {[%clk 0:00:02.2]} 50... Ka6 {[%clk 0:00:37.4]} 51. Kd3 {[%clk 0:00:02.8]}
51... Kb7 {[%clk 0:00:37.6]} 52. Ke3 {[%clk 0:00:03.5]} 52... Ka6 {[%clk
0:00:37.8]} 53. Kd4 {[%clk 0:00:04.2]} 53... Kb7 {[%clk 0:00:38.1]} 54. Ke5
{[%clk 0:00:04.8]} 54... Ka6 {[%clk 0:00:38.3]} 55. Kd6 {[%clk 0:00:05.4]} 55...
Kb7 {[%clk 0:00:36.9]} 56. a6+ {[%clk 0:00:05.8]} 56... Kxa6 {[%clk 0:00:37.2]}
57. Kxc6 {[%clk 0:00:06.7]} 57... d4 {[%clk 0:00:37.7]} 58. b7 {[%clk
0:00:07.6]} 58... d3 {[%clk 0:00:38.4]} 59. b8=Q {[%clk 0:00:07.8]} 59... d2
{[%clk 0:00:39.1]} 60. Qa8# {[%clk 0:00:08.4]} 1-0

[Event "Late-Titled-Tuesday-Blitz-June-18-2024"]
[Site "Chess.com"]
[Date "2024.06.18"]
[Round "10"]
[White "nihalsarin"]
[Black "Msb2"]
[Result "1-0"]
[WhiteElo "3198"]
[BlackElo "3075"]
[TimeControl "180+1"]
[EndTime "15:56:03 PDT"]
[Termination "nihalsarin won on time"]

1. d4 {[%clk 0:02:56.1]} 1... d5 {[%clk 0:03:00.2]} 2. Nf3 {[%clk 0:02:54.3]}
2... e6 {[%clk 0:03:00.6]} 3. c4 {[%clk 0:02:54.6]} 3... Nf6 {[%clk 0:03:00.8]}
4. Qc2 {[%clk 0:02:55]} 4... dxc4 {[%clk 0:02:52.6]} 5. Qxc4 {[%clk 0:02:50.3]}
5... a6 {[%clk 0:02:45.1]} 6. Bf4 {[%clk 0:02:48.2]} 6... Bd6 {[%clk 0:02:43.1]}
7. Bg3 {[%clk 0:02:41.9]} 7... b5 {[%clk 0:02:39.7]} 8. Qc2 {[%clk 0:02:41.6]}
8... Bb7 {[%clk 0:02:40.3]} 9. Nbd2 {[%clk 0:02:42.3]} 9... Nc6 {[%clk 0:02:21]}
10. e3 {[%clk 0:02:36.4]} 10... O-O {[%clk 0:02:17.8]} 11. a3 {[%clk 0:02:30.8]}
11... Rc8 {[%clk 0:02:17.6]} 12. Bd3 {[%clk 0:02:27.3]} 12... h6 {[%clk
0:02:03.5]} 13. Ne4 {[%clk 0:02:24.6]} 13... Ne7 {[%clk 0:01:30.2]} 14. Nxf6+
{[%clk 0:02:00]} 14... gxf6 {[%clk 0:01:31.1]} 15. O-O {[%clk 0:02:00.4]} 15...
c5 {[%clk 0:01:25.9]} 16. dxc5 {[%clk 0:01:33.2]} 16... Rxc5 {[%clk 0:01:24.9]}
17. Qe2 {[%clk 0:01:33.7]} 17... Bxf3 {[%clk 0:01:13]} 18. gxf3 {[%clk
0:01:30.2]} 18... Qc7 {[%clk 0:01:03.4]} 19. a4 {[%clk 0:01:22]} 19... Rd8
{[%clk 0:00:55.5]} 20. axb5 {[%clk 0:01:19.9]} 20... axb5 {[%clk 0:00:56.4]} 21.
Rfd1 {[%clk 0:01:07.6]} 21... Bxg3 {[%clk 0:00:47.2]} 22. hxg3 {[%clk
0:01:08.5]} 22... Kg7 {[%clk 0:00:47.8]} 23. Kg2 {[%clk 0:00:32.4]} 23... b4
{[%clk 0:00:46.2]} 24. Rd2 {[%clk 0:00:18.7]} 24... Rcd5 {[%clk 0:00:42.9]} 25.
Rdd1 {[%clk 0:00:18.7]} 25... Qd6 {[%clk 0:00:39.6]} 26. Bc2 {[%clk 0:00:18.6]}
26... Rd2 {[%clk 0:00:38.5]} 27. Qc4 {[%clk 0:00:11.2]} 27... Qe5 {[%clk
0:00:12.6]} 28. Qxb4 {[%clk 0:00:05.4]} 28... Rxd1 {[%clk 0:00:04.3]} 29. Rxd1
{[%clk 0:00:06.3]} 29... Rb8 {[%clk 0:00:04.7]} 30. Qxe7 {[%clk 0:00:05.5]}
30... Qxb2 {[%clk 0:00:01]} 31. Rd7 {[%clk 0:00:05.6]} 31... Rf8 {[%clk
0:00:01.8]} 32. Rc7 {[%clk 0:00:05.6]} 32... Qe5 {[%clk 0:00:01.7]} 33. Rc4
{[%clk 0:00:05.8]} 33... h5 {[%clk 0:00:01.7]} 34. Rc5 {[%clk 0:00:05.4]} 34...
Qb2 {[%clk 0:00:01.8]} 35. Qd6 {[%clk 0:00:04.8]} 1-0

[Event "Late-Titled-Tuesday-Blitz-June-18-2024"]
[Site "Chess.com"]
[Date "2024.06.18"]
[Round "10"]
[White "Individoom"]
[Black "Abund"]
[Result "0-1"]
[WhiteElo "2784"]
[BlackElo "2692"]
[TimeControl "180+1"]
[EndTime "15:56:04 PDT"]
[Termination "Abund won on time"]

1. d4 {[%clk 0:03:00.9]} 1... d5 {[%clk 0:03:00]} 2. Nf3 {[%clk 0:02:58.4]} 2...
Nf6 {[%clk 0:02:59.9]} 3. Bf4 {[%clk 0:02:58.6]} 3... e6 {[%clk 0:02:59.8]} 4.
e3 {[%clk 0:02:58.4]} 4... Bd6 {[%clk 0:03:00.2]} 5. Bg3 {[%clk 0:02:58.5]} 5...
O-O {[%clk 0:03:00]} 6. Nbd2 {[%clk 0:02:58.2]} 6... c5 {[%clk 0:03:00.5]} 7. c3
{[%clk 0:02:58.4]} 7... Qc7 {[%clk 0:03:00.6]} 8. dxc5 {[%clk 0:02:57.7]} 8...
Qxc5 {[%clk 0:03:00.5]} 9. Bd3 {[%clk 0:02:58]} 9... Bxg3 {[%clk 0:02:35.8]} 10.
hxg3 {[%clk 0:02:57.4]} 10... h6 {[%clk 0:02:20.8]} 11. Ne5 {[%clk 0:02:47.4]}
11... Nc6 {[%clk 0:02:19.4]} 12. Ng4 {[%clk 0:02:34.2]} 12... Nxg4 {[%clk
0:02:12.6]} 13. Qxg4 {[%clk 0:02:34.2]} 13... e5 {[%clk 0:02:13.1]} 14. Qh5
{[%clk 0:02:33.5]} 14... f5 {[%clk 0:02:00.4]} 15. O-O-O {[%clk 0:02:15.6]}
15... Be6 {[%clk 0:01:58]} 16. g4 {[%clk 0:02:06.2]} 16... e4 {[%clk 0:01:44.5]}
17. Bc2 {[%clk 0:01:51.4]} 17... fxg4 {[%clk 0:01:29.5]} 18. Nxe4 {[%clk
0:01:50.6]} 18... Qe7 {[%clk 0:01:28.5]} 19. Rxd5 {[%clk 0:01:40.8]} 19... Bxd5
{[%clk 0:01:20.5]} 20. Qxd5+ {[%clk 0:01:40.8]} 20... Kh8 {[%clk 0:01:13.3]} 21.
Nd6 {[%clk 0:00:47.4]} 21... Rxf2 {[%clk 0:00:46.1]} 22. Qd3 {[%clk 0:00:47.1]}
22... Rxc2+ {[%clk 0:00:41.3]} 23. Kxc2 {[%clk 0:00:48]} 23... Ne5 {[%clk
0:00:36.6]} 24. Qd5 {[%clk 0:00:44.1]} 24... Rf8 {[%clk 0:00:29.1]} 25. Rd1
{[%clk 0:00:38.9]} 25... b6 {[%clk 0:00:28.7]} 26. Kb1 {[%clk 0:00:35.1]} 26...
g3 {[%clk 0:00:28.3]} 27. Qe4 {[%clk 0:00:30.8]} 27... Qg5 {[%clk 0:00:16.6]}
28. Rd5 {[%clk 0:00:25.9]} 28... Qh5 {[%clk 0:00:05.6]} 29. Qxe5 {[%clk
0:00:21.3]} 29... Qh1+ {[%clk 0:00:05]} 30. Kc2 {[%clk 0:00:21.3]} 30... Qxg2+
{[%clk 0:00:05.6]} 31. Kb3 {[%clk 0:00:21.5]} 31... Qf3 {[%clk 0:00:04.5]} 32.
Ne8 {[%clk 0:00:04.7]} 32... Qf7 {[%clk 0:00:02.9]} 33. Nd6 {[%clk 0:00:03.4]}
33... Qg8 {[%clk 0:00:02.3]} 34. c4 {[%clk 0:00:01]} 34... g2 {[%clk 0:00:02.8]}
35. Rd1 {[%clk 0:00:01.2]} 35... Rf1 {[%clk 0:00:02.5]} 0-1

[Event "Late-Titled-Tuesday-Blitz-June-18-2024"]
[Site "Chess.com"]
[Date "2024.06.18"]
[Round "10"]
[White "marvinguevara"]
[Black "PhileKhoob"]
[Result "1-0"]
[WhiteElo "2182"]
[BlackElo "2340"]
[TimeControl "180+1"]
[EndTime "15:56:15 PDT"]
[Termination "marvinguevara won on time"]

1. e4 {[%clk 0:03:00.9]} 1... c6 {[%clk 0:02:55.2]} 2. d4 {[%clk 0:03:00.6]}
2... d5 {[%clk 0:02:54.5]} 3. exd5 {[%clk 0:02:59.5]} 3... cxd5 {[%clk
0:02:55.4]} 4. c4 {[%clk 0:03:00]} 4... Nf6 {[%clk 0:02:54.6]} 5. Nc3 {[%clk
0:02:59.8]} 5... e6 {[%clk 0:02:54.3]} 6. c5 {[%clk 0:02:58.1]} 6... b6 {[%clk
0:02:47.5]} 7. b4 {[%clk 0:02:57.6]} 7... a5 {[%clk 0:02:41.1]} 8. Na4 {[%clk
0:02:56.4]} 8... Nbd7 {[%clk 0:02:17.6]} 9. Bb5 {[%clk 0:02:47.3]} 9... Ba6
{[%clk 0:01:46.8]} 10. Bc6 {[%clk 0:02:39.6]} 10... Rc8 {[%clk 0:01:26.5]} 11.
b5 {[%clk 0:02:38.4]} 11... Rxc6 {[%clk 0:01:22.3]} 12. bxc6 {[%clk 0:02:36.3]}
12... Nb8 {[%clk 0:01:19.7]} 13. Nxb6 {[%clk 0:02:31.1]} 13... Nxc6 {[%clk
0:01:10.6]} 14. Qa4 {[%clk 0:02:26]} 14... Qc7 {[%clk 0:00:54.2]} 15. Nf3 {[%clk
0:02:24.3]} 15... Nd7 {[%clk 0:00:31.2]} 16. Bd2 {[%clk 0:02:15.7]} 16... Nxb6
{[%clk 0:00:17.4]} 17. cxb6 {[%clk 0:02:16.6]} 17... Qxb6 {[%clk 0:00:17.9]} 18.
Rc1 {[%clk 0:01:48.7]} 18... Bb5 {[%clk 0:00:16.4]} 19. Qb3 {[%clk 0:01:49.3]}
19... Nb4 {[%clk 0:00:05.7]} 20. Kd1 {[%clk 0:00:57.7]} 20... Nd3 {[%clk
0:00:02.5]} 21. Rb1 {[%clk 0:00:35.3]} 21... Nxf2+ {[%clk 0:00:02.6]} 22. Ke1
{[%clk 0:00:35.5]} 22... Nd3+ {[%clk 0:00:02.6]} 23. Qxd3 {[%clk 0:00:34.3]}
23... Bxd3 {[%clk 0:00:02.1]} 24. Rxb6 {[%clk 0:00:34.3]} 24... Kd7 {[%clk
0:00:02.4]} 25. Rb8 {[%clk 0:00:33.3]} 25... Kc7 {[%clk 0:00:02.3]} 26. Ra8
{[%clk 0:00:29.1]} 26... Kb7 {[%clk 0:00:02]} 27. Rxa5 {[%clk 0:00:22]} 27...
Bd6 {[%clk 0:00:02.1]} 28. Kf2 {[%clk 0:00:20.7]} 28... Rc8 {[%clk 0:00:02.6]}
29. Rc1 {[%clk 0:00:19.8]} 29... Rxc1 {[%clk 0:00:01.5]} 30. Bxc1 {[%clk
0:00:19.1]} 30... Bb4 {[%clk 0:00:02.2]} 31. Ra4 {[%clk 0:00:17]} 31... Bd6
{[%clk 0:00:02.4]} 32. Bd2 {[%clk 0:00:15.6]} 32... Bb5 {[%clk 0:00:02.7]} 33.
Ra5 {[%clk 0:00:15.1]} 33... Kb6 {[%clk 0:00:03]} 34. Ne5 {[%clk 0:00:14.3]}
34... f6 {[%clk 0:00:02.3]} 35. Nf7 {[%clk 0:00:12.3]} 35... Bc7 {[%clk
0:00:01.5]} 36. Ra8 {[%clk 0:00:09.1]} 36... Kb7 {[%clk 0:00:01.9]} 37. Rh8
{[%clk 0:00:09]} 37... e5 {[%clk 0:00:02.4]} 38. Rxh7 {[%clk 0:00:08.7]} 38...
exd4 {[%clk 0:00:01.6]} 39. Rxg7 {[%clk 0:00:09.2]} 39... d3 {[%clk 0:00:02]}
40. Nd6+ {[%clk 0:00:09]} 40... Kc6 {[%clk 0:00:02]} 41. Nxb5 {[%clk 0:00:09.9]}
41... Bb6+ {[%clk 0:00:01.5]} 42. Be3 {[%clk 0:00:09.5]} 42... d2 {[%clk
0:00:01.7]} 43. Ke2 {[%clk 0:00:09.2]} 1-0

[Event "Late-Titled-Tuesday-Blitz-June-18-2024"]
[Site "Chess.com"]
[Date "2024.06.18"]
[Round "10"]
[White "arctic_t00"]
[Black "K-Nygren"]
[Result "1-0"]
[WhiteElo "2707"]
[BlackElo "2542"]
[TimeControl "180+1"]
[EndTime "15:56:17 PDT"]
[Termination "arctic_t00 won on time"]

1. Nf3 {[%clk 0:03:00.9]} 1... Nf6 {[%clk 0:02:59.1]} 2. c4 {[%clk 0:03:00.6]}
2... c5 {[%clk 0:02:59]} 3. Nc3 {[%clk 0:03:00.4]} 3... d5 {[%clk 0:02:58.7]} 4.
cxd5 {[%clk 0:03:00]} 4... Nxd5 {[%clk 0:02:59.6]} 5. e3 {[%clk 0:02:59.9]} 5...
Nc6 {[%clk 0:02:58.5]} 6. Bc4 {[%clk 0:02:58.7]} 6... Nc7 {[%clk 0:02:55.5]} 7.
O-O {[%clk 0:02:50.9]} 7... e6 {[%clk 0:02:54.1]} 8. d4 {[%clk 0:02:44.1]} 8...
Be7 {[%clk 0:02:52.8]} 9. a3 {[%clk 0:02:24.3]} 9... O-O {[%clk 0:02:51.6]} 10.
dxc5 {[%clk 0:02:17.3]} 10... Bxc5 {[%clk 0:02:48.7]} 11. b4 {[%clk 0:02:17.1]}
11... Bb6 {[%clk 0:02:46.8]} 12. Bb2 {[%clk 0:02:16.9]} 12... Qe7 {[%clk
0:02:45.8]} 13. Qc2 {[%clk 0:02:06.5]} 13... e5 {[%clk 0:02:43.6]} 14. h3 {[%clk
0:01:39.4]} 14... Be6 {[%clk 0:02:40.6]} 15. Bd3 {[%clk 0:01:29.1]} 15... f5
{[%clk 0:02:26.7]} 16. b5 {[%clk 0:01:19.8]} 16... Na5 {[%clk 0:02:26.2]} 17. e4
{[%clk 0:01:09]} 17... fxe4 {[%clk 0:02:09.9]} 18. Bxe4 {[%clk 0:01:06]} 18...
h6 {[%clk 0:02:07.5]} 19. Nxe5 {[%clk 0:00:57.3]} 19... Bb3 {[%clk 0:02:05]} 20.
Qe2 {[%clk 0:00:57.9]} 20... Rae8 {[%clk 0:00:43.7]} 21. Ng6 {[%clk 0:00:54.3]}
21... Qc5 {[%clk 0:00:28.3]} 22. Nxf8 {[%clk 0:00:52.9]} 22... Rxf8 {[%clk
0:00:29.2]} 23. Bd3 {[%clk 0:00:41.1]} 23... Ne6 {[%clk 0:00:21.3]} 24. Ne4
{[%clk 0:00:36.7]} 24... Qe7 {[%clk 0:00:15.6]} 25. Be5 {[%clk 0:00:32.7]} 25...
Bd4 {[%clk 0:00:12.8]} 26. Bd6 {[%clk 0:00:29]} 26... Qh4 {[%clk 0:00:09.2]} 27.
Bxf8 {[%clk 0:00:27.4]} 27... Nf4 {[%clk 0:00:09.2]} 28. Qg4 {[%clk 0:00:26.9]}
28... Qxg4 {[%clk 0:00:08.3]} 29. hxg4 {[%clk 0:00:27.8]} 29... Nxd3 {[%clk
0:00:08.4]} 30. Rad1 {[%clk 0:00:23.1]} 30... Bxd1 {[%clk 0:00:07.5]} 31. Rxd1
{[%clk 0:00:23.4]} 31... Nf4 {[%clk 0:00:06.7]} 32. Kf1 {[%clk 0:00:16.1]} 32...
Bb2 {[%clk 0:00:03.6]} 33. Rd8 {[%clk 0:00:15.4]} 33... Kf7 {[%clk 0:00:03.3]}
34. Bb4 {[%clk 0:00:14.6]} 34... Nc4 {[%clk 0:00:03]} 35. Rd7+ {[%clk 0:00:14]}
35... Ke6 {[%clk 0:00:02.9]} 36. Rxb7 {[%clk 0:00:14.4]} 36... g5 {[%clk
0:00:01.6]} 37. Rxa7 {[%clk 0:00:13.4]} 37... Kd5 {[%clk 0:00:02.5]} 38. Rd7+
{[%clk 0:00:12.4]} 38... Kxe4 {[%clk 0:00:02.5]} 39. a4 {[%clk 0:00:07.4]} 39...
Bd4 {[%clk 0:00:01.5]} 40. a5 {[%clk 0:00:07]} 40... Nd3 {[%clk 0:00:01.5]} 41.
f3+ {[%clk 0:00:06.5]} 1-0

[Event "Late-Titled-Tuesday-Blitz-June-18-2024"]
[Site "Chess.com"]
[Date "2024.06.18"]
[Round "10"]
[White "Viktor_Poddubnyi"]
[Black "BillCoe"]
[Result "1-0"]
[WhiteElo "2339"]
[BlackElo "2106"]
[TimeControl "180+1"]
[EndTime "15:56:18 PDT"]
[Termination "Viktor_Poddubnyi won on time"]

1. e4 {[%clk 0:03:00.5]} 1... c5 {[%clk 0:03:00.1]} 2. Nf3 {[%clk 0:03:00.3]}
2... e6 {[%clk 0:03:00.5]} 3. c3 {[%clk 0:02:58.7]} 3... d5 {[%clk 0:03:00]} 4.
exd5 {[%clk 0:02:58.4]} 4... Qxd5 {[%clk 0:03:00.9]} 5. d4 {[%clk 0:02:58.5]}
5... Nf6 {[%clk 0:03:00.5]} 6. Be2 {[%clk 0:02:56.7]} 6... Be7 {[%clk
0:03:00.5]} 7. O-O {[%clk 0:02:56.9]} 7... O-O {[%clk 0:03:00.6]} 8. c4 {[%clk
0:02:52.9]} 8... Qd8 {[%clk 0:02:59.2]} 9. Nc3 {[%clk 0:02:51.4]} 9... cxd4
{[%clk 0:02:58.3]} 10. Nxd4 {[%clk 0:02:47.5]} 10... a6 {[%clk 0:02:58.5]} 11.
Bf4 {[%clk 0:02:39.7]} 11... Bd7 {[%clk 0:02:52.7]} 12. Bf3 {[%clk 0:02:36.1]}
12... Nc6 {[%clk 0:02:52.2]} 13. Nxc6 {[%clk 0:02:33.2]} 13... Bxc6 {[%clk
0:02:51.6]} 14. Bxc6 {[%clk 0:02:30.5]} 14... bxc6 {[%clk 0:02:50.6]} 15. Qf3
{[%clk 0:02:25.2]} 15... Qd4 {[%clk 0:02:30.2]} 16. b3 {[%clk 0:01:54.6]} 16...
Bd6 {[%clk 0:02:05.6]} 17. Bg5 {[%clk 0:01:43.9]} 17... Qg4 {[%clk 0:01:59.6]}
18. Qxg4 {[%clk 0:01:21]} 18... Nxg4 {[%clk 0:02:00.5]} 19. h3 {[%clk
0:01:17.2]} 19... Be5 {[%clk 0:01:39.2]} 20. hxg4 {[%clk 0:00:55.7]} 20... Bxc3
{[%clk 0:01:38.4]} 21. Rad1 {[%clk 0:00:51.6]} 21... f6 {[%clk 0:01:21.4]} 22.
Rd3 {[%clk 0:00:48.8]} 22... Be5 {[%clk 0:01:15.4]} 23. Be3 {[%clk 0:00:45.6]}
23... Rfd8 {[%clk 0:01:04.3]} 24. Rfd1 {[%clk 0:00:45.4]} 24... Rxd3 {[%clk
0:00:45.6]} 25. Rxd3 {[%clk 0:00:46.3]} 25... Kf7 {[%clk 0:00:24.5]} 26. Rd7+
{[%clk 0:00:45.5]} 26... Kg6 {[%clk 0:00:24.9]} 27. f4 {[%clk 0:00:37.1]} 27...
Bc3 {[%clk 0:00:19.2]} 28. Rd6 {[%clk 0:00:33.9]} 28... e5 {[%clk 0:00:18.6]}
29. f5+ {[%clk 0:00:28.4]} 29... Kf7 {[%clk 0:00:17.6]} 30. Rxc6 {[%clk
0:00:27.5]} 30... Rd8 {[%clk 0:00:17.7]} 31. Rxa6 {[%clk 0:00:20.4]} 31... Rd1+
{[%clk 0:00:17.3]} 32. Kf2 {[%clk 0:00:20.7]} 32... Be1+ {[%clk 0:00:17.3]} 33.
Ke2 {[%clk 0:00:19.3]} 33... Rb1 {[%clk 0:00:17.7]} 34. Ra7+ {[%clk 0:00:17]}
34... Kg8 {[%clk 0:00:16.2]} 35. c5 {[%clk 0:00:12.2]} 35... Bb4 {[%clk
0:00:11.3]} 36. c6 {[%clk 0:00:11.5]} 36... Rb2+ {[%clk 0:00:11.7]} 37. Kd3
{[%clk 0:00:10.7]} 37... Bd6 {[%clk 0:00:05.1]} 38. Rd7 {[%clk 0:00:10.7]} 38...
e4+ {[%clk 0:00:03.4]} 39. Kxe4 {[%clk 0:00:09.1]} 39... Be5 {[%clk 0:00:03.7]}
40. Bc5 {[%clk 0:00:08.4]} 40... g5 {[%clk 0:00:01.7]} 41. Bd6 {[%clk
0:00:06.5]} 1-0

[Event "Late-Titled-Tuesday-Blitz-June-18-2024"]
[Site "Chess.com"]
[Date "2024.06.18"]
[Round "10"]
[White "Igor_Lysyj"]
[Black "HamedWafa4"]
[Result "1-0"]
[WhiteElo "2844"]
[BlackElo "2655"]
[TimeControl "180+1"]
[EndTime "15:56:19 PDT"]
[Termination "Igor_Lysyj won on time"]

1. d4 {[%clk 0:03:00]} 1... Nf6 {[%clk 0:02:59.7]} 2. c4 {[%clk 0:03:00.1]} 2...
e6 {[%clk 0:02:59.7]} 3. Nf3 {[%clk 0:03:00.4]} 3... Bb4+ {[%clk 0:02:59.3]} 4.
Bd2 {[%clk 0:03:00.4]} 4... Be7 {[%clk 0:02:59.7]} 5. g3 {[%clk 0:02:58.4]} 5...
O-O {[%clk 0:02:59.1]} 6. Bg2 {[%clk 0:02:58.9]} 6... d5 {[%clk 0:02:58.8]} 7.
O-O {[%clk 0:02:59]} 7... c6 {[%clk 0:02:58.4]} 8. Qc2 {[%clk 0:02:58.7]} 8...
Nbd7 {[%clk 0:02:58.4]} 9. b3 {[%clk 0:02:56.9]} 9... b6 {[%clk 0:02:53.7]} 10.
Rd1 {[%clk 0:02:55.6]} 10... Bb7 {[%clk 0:02:53.2]} 11. Bc3 {[%clk 0:02:55.1]}
11... Ne4 {[%clk 0:02:51.6]} 12. Ne5 {[%clk 0:02:52.8]} 12... Nxe5 {[%clk
0:02:50.4]} 13. Bxe4 {[%clk 0:02:52.1]} 13... dxe4 {[%clk 0:02:42.6]} 14. dxe5
{[%clk 0:02:52.1]} 14... Qc7 {[%clk 0:02:42.9]} 15. Qxe4 {[%clk 0:02:46.6]}
15... c5 {[%clk 0:02:43]} 16. Qe3 {[%clk 0:02:46.4]} 16... h6 {[%clk 0:02:36.1]}
17. Nd2 {[%clk 0:02:45]} 17... Bg5 {[%clk 0:02:31.7]} 18. f4 {[%clk 0:02:44.7]}
18... Be7 {[%clk 0:02:29.6]} 19. Nf3 {[%clk 0:02:42.9]} 19... Rad8 {[%clk
0:02:29.3]} 20. h4 {[%clk 0:02:25]} 20... Rxd1+ {[%clk 0:02:18.2]} 21. Rxd1
{[%clk 0:02:24.4]} 21... Rd8 {[%clk 0:02:18.1]} 22. Rd3 {[%clk 0:02:22.8]} 22...
Rxd3 {[%clk 0:02:16.9]} 23. Qxd3 {[%clk 0:02:22.9]} 23... h5 {[%clk 0:02:15.1]}
24. Kf2 {[%clk 0:02:19.8]} 24... g6 {[%clk 0:02:15]} 25. e4 {[%clk 0:02:14]}
25... Qc6 {[%clk 0:02:11.3]} 26. Ke3 {[%clk 0:02:13.8]} 26... a6 {[%clk
0:02:09.2]} 27. a4 {[%clk 0:02:13.2]} 27... Kh7 {[%clk 0:02:07.1]} 28. Nd2
{[%clk 0:01:59.9]} 28... a5 {[%clk 0:02:05.6]} 29. Kf3 {[%clk 0:01:55.2]} 29...
Kg8 {[%clk 0:02:02.2]} 30. Kg2 {[%clk 0:01:49.4]} 30... Bf8 {[%clk 0:02:00.7]}
31. Kh3 {[%clk 0:01:43.3]} 31... Be7 {[%clk 0:01:59.5]} 32. g4 {[%clk 0:01:41]}
32... hxg4+ {[%clk 0:01:59.2]} 33. Kxg4 {[%clk 0:01:41.5]} 33... Kg7 {[%clk
0:01:56.8]} 34. Kh3 {[%clk 0:01:19.3]} 34... Kh7 {[%clk 0:01:55.3]} 35. Kg3
{[%clk 0:01:12.1]} 35... Kg8 {[%clk 0:01:54.4]} 36. Kg4 {[%clk 0:01:12.2]} 36...
Kh7 {[%clk 0:01:53.3]} 37. h5 {[%clk 0:00:35.7]} 37... gxh5+ {[%clk 0:01:49.4]}
38. Kxh5 {[%clk 0:00:36.3]} 38... Qe8 {[%clk 0:01:40.1]} 39. Kg4 {[%clk
0:00:36.5]} 39... Qg8+ {[%clk 0:01:39.8]} 40. Kf3 {[%clk 0:00:34.9]} 40... Bc6
{[%clk 0:01:33.2]} 41. Qf1 {[%clk 0:00:33.6]} 41... Qg6 {[%clk 0:01:12.9]} 42.
Qh3+ {[%clk 0:00:31.5]} 42... Kg7 {[%clk 0:01:13.2]} 43. Qg4 {[%clk 0:00:31.3]}
43... Qxg4+ {[%clk 0:01:07.4]} 44. Kxg4 {[%clk 0:00:31.3]} 44... Bd8 {[%clk
0:01:05.2]} 45. f5 {[%clk 0:00:25.1]} 45... Bc7 {[%clk 0:00:39.8]} 46. Kf4
{[%clk 0:00:24.6]} 46... f6 {[%clk 0:00:31.4]} 47. Nf1 {[%clk 0:00:20.4]} 47...
Kf7 {[%clk 0:00:27.2]} 48. Ne3 {[%clk 0:00:20.4]} 48... exf5 {[%clk 0:00:17.6]}
49. exf5 {[%clk 0:00:20.3]} 49... Bb7 {[%clk 0:00:04.5]} 50. Nd5 {[%clk
0:00:19.9]} 50... Bxd5 {[%clk 0:00:01.5]} 51. cxd5 {[%clk 0:00:20.1]} 1-0